Cogmind - Beta 14 @@@ ROGUE MODE // 2024.08.07 @ 11:07:43 Player: Olafz Result: Destroyed by B-75 Beast with Heavy Plasma Cannon Performance ------------- Evolutions (5) 2500 Regions Visited (15) 3000 Robots Destroyed (64) 320 Value Destroyed (2203) 2203 Prototype IDs (34) 680 Alien Tech Used (0) 0 Bonus (788) 788 TOTAL SCORE: 9491 Bonus ------- Follower Combat Kills 234 Registered with UFD 300 Met Data Miner 300 Friendly Fire -46 Cogmind --------- Core Integrity 0/1000 Matter 300/300 Energy 99/100 System Corruption 12% Temperature Cool (-138) Movement Treading (160) Location -5/Extension Parts ------- > --- POWER (1) -------- (None) > --- PROPULSION (4) --- Improved Treads Improved Medium Treads Improved Medium Treads Improved Medium Treads > --- UTILITY (9) ------ Improved Cryofiber Web Advanced Heat Sink Improved Sensor Array Experimental Signal Interpreter Advanced Targeting Computer Improved Target Analyzer Core Analyzer A0-MCA's Component Scanner Improved Corruption Screen > --- WEAPON (3) ------- Wave Gun Variable Charge Gun > --- INVENTORY (5) ---- Improved Heat Sink Improved Weapon Cycler Heavy Phase Cannon Power Sword DRS Beacon (Ready) Peak State ------------ > --- POWER ------------ Light Angular Momentum Engine > --- PROPULSION ------- Improved Treads Improved Medium Treads Improved Medium Treads Improved Medium Treads > --- UTILITY ---------- Improved Cryofiber Web Advanced Heat Sink Experimental Signal Interpreter Advanced Targeting Computer Improved Target Analyzer Core Analyzer Improved Weapon Cycler A0-MCA's Component Scanner Improved Corruption Screen > --- WEAPON ----------- Plasma Rifle Wave Gun Variable Charge Gun > --- INVENTORY -------- Improved Heat Sink Heavy Phase Cannon Power Sword DRS Beacon [Rating: 92] Favorites ----------- Power Heavy Ion Engine Engine Heavy Ion Engine Power Core Nuclear Core Propulsion Light Treads Treads Light Treads Leg Carbon-fiber Leg Wheel Compact Wheel Hover Unit Antigrav System Utility High-capacity Storage Unit Device Advanced Heat Sink Storage High-capacity Storage Unit Processor Advanced Targeting Computer Protection Makeshift Light Armor Plating Weapon Heavy EM Shotgun Energy Gun Heavy EM Shotgun Energy Cannon Advanced Beam Cannon Ballistic Gun Light Assault Rifle Ballistic Cannon Enhanced Gauss Cannon Slashing Weapon Power Sword Build | -11 -10 -9 -8 -8 -8 -8 -6 -6 -6 -6 -5 -5 -5 -5 -5 ------- Run | Yrd Mat Mat Mat Sto Rec Scr Fac Low Low Dat Pro Fac Was Fac Ext Slots Evolved 10 | . . 2 2 . . . 4 . . . . 2 . . . Power . | . . . . . . . . . . . . . . . . Propulsion 2 | . . . 1 . . . . . . . . 1 . . . Utility 7 | . . 2 1 . . . 3 . . . . 1 . . . Weapon 1 | . . . . . . . 1 . . . . . . . . Parts Attached 107 | . 5 10 13 9 . 5 8 3 8 . 1 11 . 20 14 Power 12 | . . 2 1 1 . 1 . . 1 . . 2 . 3 1 Engine 7 | . . 1 . 1 . 1 . . . . . 1 . 2 1 Core 5 | . . 1 1 . . . . . 1 . . 1 . 1 . Reactor . | . . . . . . . . . . . . . . . . Propulsion 30 | . 2 3 7 2 . 2 . . 4 . . 3 . 3 4 Treads 24 | . . 2 7 2 . 2 . . 4 . . 3 . . 4 Leg 1 | . . . . . . . . . . . . . . 1 . Wheel 3 | . 2 1 . . . . . . . . . . . . . Hover 2 | . . . . . . . . . . . . . . 2 . Flight . | . . . . . . . . . . . . . . . . Utility 34 | . 2 3 3 1 . 2 7 2 1 . 1 1 . 8 3 Device 24 | . 1 2 2 1 . 2 4 2 1 . . 1 . 5 3 Storage 1 | . 1 . . . . . . . . . . . . . . Processor 6 | . . . 1 . . . 2 . . . . . . 3 . Hackware . | . . . . . . . . . . . . . . . . Protection 3 | . . 1 . . . . 1 . . . 1 . . . . Artifact . | . . . . . . . . . . . . . . . . Weapon 31 | . 1 2 2 5 . . 1 1 2 . . 5 . 6 6 Energy Gun 18 | . . 1 1 3 . . 1 1 1 . . . . 5 5 Energy Cannon 7 | . 1 . . 2 . . . . . . . 4 . . . Ballistic Gun 3 | . . 1 1 . . . . . 1 . . . . . . Ballistic Cannon 1 | . . . . . . . . . . . . 1 . . . Launcher . | . . . . . . . . . . . . . . . . Special Weapon . | . . . . . . . . . . . . . . . . Impact Weapon . | . . . . . . . . . . . . . . . . Slashing Weapon 2 | . . . . . . . . . . . . . . 1 1 Piercing Weapon . | . . . . . . . . . . . . . . . . Special Melee Weapon . | . . . . . . . . . . . . . . . . Unidentified Prototypes 5 | . . . . 5 . . . . . . . . . . . Parts Lost 39 | . . 2 7 1 . . . 3 2 . 1 18 . 3 2 Power 5 | . . . 1 . . . . . . . . 3 . . 1 Propulsion 13 | . . 1 4 . . . . . 2 . . 6 . . . Utility 12 | . . 1 1 . . . . 2 . . 1 5 . 2 . Weapon 9 | . . . 1 1 . . . 1 . . . 4 . 1 1 Highest Loss Streak 18 | . . 1 7 1 . . . 1 2 . 1 18 . 3 2 To Critical Strikes . | . . . . . . . . . . . . . . . . Average Slot Usage (%) 93 | . 91 81 97 99 100 99 95 98 94 100 98 94 17 61 92 Engine 5 | . 14 6 . 3 9 9 6 6 4 . . . . 1 3 Core 2 | . . 4 9 5 . . . . 1 6 6 4 . 2 1 Treads 19 | . . 6 26 27 27 27 20 20 19 20 20 21 . . 14 Wheel 2 | . 22 15 . . . . . . . . . . . . . Device 21 | . 6 11 23 27 27 26 24 24 21 26 22 21 . 9 14 Storage 7 | . 14 11 9 9 9 9 6 6 6 6 6 4 . . . Processor 13 | . . . 6 9 9 9 20 20 20 20 20 17 17 27 35 Protection 1 | . . 4 4 . . . . . . . 2 4 . . . Energy Gun 9 | . 2 2 9 7 9 9 10 13 13 13 13 3 . 10 15 Energy Cannon 5 | . 11 8 . 7 9 9 6 6 3 . . 4 . . . Ballistic Gun 3 | . 14 11 9 2 . . . . 2 6 6 2 . . . Peak Build Rating 92 | . 8 15 25 29 28 36 67 67 66 66 70 80 22 91 92 Average Rating 44 | . 7 10 20 26 28 32 58 65 61 66 67 75 22 60 87 On Entrance 37 | 6 6 8 15 25 28 28 36 63 58 66 66 70 22 22 84 Naked Turns . | . . . . . . . . . . . . . . . . Heaviest Build 89 | 12 50 56 57 59 59 61 72 65 64 63 66 89 . 23 27 Greatest Support 113 | 20 32 40 62 62 62 65 65 65 68 68 68 91 3 31 113 Greatest Overweight (x) 3 | . 1 3 . . . . 1 . 1 . . 1 . 1 2 Average Overweight (x) . | . . 1 . . . . . . . . . . . . . Largest Inventory Capacity 20 | . 20 20 20 20 20 20 20 20 20 20 20 20 5 5 5 Average Capacity 17 | . 17 20 20 20 20 20 20 20 20 20 20 19 5 5 5 Most Carried 20 | . 14 20 20 20 19 20 20 20 19 19 20 20 5 5 5 Average Carried 16 | . 11 16 17 19 19 19 18 19 18 19 19 19 5 4 4 Final Capacity 20 | 8 20 20 20 20 20 20 20 20 20 20 20 5 5 5 5 Final Carried 20 | 6 14 17 20 19 19 20 20 20 19 19 20 5 5 5 5 Class Distribution -------------------- 55% | Mutant 13% | Gunner 12% | Scavenger-Gunner 8% | Scavenger-Mutant 5% | Skirmisher 4% | Tank Dominant Class ---------------- Mutant | -10/Materials Mutant | -9/Materials Scavenger-Mutant | -8/Materials Mutant | -8/Storage Mutant | -8/Recycling Mutant | -8/Scraptown Gunner | -6/Factory Skirmisher | -6/Lower Caves Gunner | -6/Lower Caves Scavenger-Gunner | -6/Data Miner Gunner | -5/Proximity Caves Tank | -5/Factory Mutant | -5/Waste Scavenger-Gunner | -5/Factory Scavenger-Gunner | -5/Extension Resources | -11 -10 -9 -8 -8 -8 -8 -6 -6 -6 -6 -5 -5 -5 -5 -5 ----------- Run | Yrd Mat Mat Mat Sto Rec Scr Fac Low Low Dat Pro Fac Was Fac Ext Matter Collected 1501 | 160 75 165 246 . . 121 . 135 65 . 65 . . 247 222 Remotely . | . . . . . . . . . . . . . . . . Salvage Created 2644 | . 156 432 659 100 . . 27 205 80 . 513 . . 423 49 Parts 134 | . 11 28 28 5 . . 3 9 7 . 17 . . 24 2 Haulers Intercepted 2 | . 1 . 1 . . . . . . . . . . . . Recyclers Shooed 1 | . 1 . . . . . . . . . . . . . . Parts Field Recycled . | . . . . . . . . . . . . . . . . Retrieved Matter . | . . . . . . . . . . . . . . . . Parts Self-Destructed 27 | . . . . . . . . 8 9 . 10 . . . . Prevented 11 | . . . . . . . . 3 . . 8 . . . . Kills | -11 -10 -9 -8 -8 -8 -8 -6 -6 -6 -6 -5 -5 -5 -5 -5 ------- Run | Yrd Mat Mat Mat Sto Rec Scr Fac Low Low Dat Pro Fac Was Fac Ext Combat Hostiles Destroyed 54 | . 4 12 13 2 . . . 6 3 . 8 . . 5 1 Melee 1 | . . . . . . . . . . . . . . 1 . Guns 37 | . 1 6 13 1 . . . 3 2 . 6 . . 4 1 Cannons 13 | . 3 6 . . . . . 3 1 . . . . . . AOE 2 | . . . . . . . . . . . 2 . . . . Classes Destroyed 9 | . 4 3 1 . . . . . . . . . . 1 . Worker 2 | . . 1 . . . . . . . . . . . 1 . Builder 1 | . . . 1 . . . . . . . . . . . . Hauler 2 | . 1 . 1 . . . . . . . . . . . . Watcher 5 | . 1 . 1 . . . 1 . . . . . . 2 . Swarmer 20 | . 3 5 3 . . . . 5 3 . 1 . . . . Grunt 21 | . 1 4 8 1 . . . . . . 6 . . 1 . Duelist 2 | . . 1 1 . . . . . . . . . . . . Sentry 8 | . . 2 1 1 . . . 1 . . 1 . . 2 . Programmer 3 | . . . . . . . . . . . . . . 2 1 Best Kill Streak 7 | . 2 4 7 2 . . 1 3 3 . 5 . . 2 1 Combat Bots Only 6 | . 2 3 6 2 . . . 3 3 . 5 . . 2 1 Max Kills in Single Turn 2 | . 1 2 2 1 . . 1 1 1 . 1 . . 1 1 Gunslinging 1 | . . 1 1 . . . . . . . . . . . . Exploded 1 | . . . . . . . . . . . 1 . . . . Melee 1 | . . . . . . . . . . . . . . 1 . Uniques/NPCs Destroyed . | . . . . . . . . . . . . . . . . Combat | -11 -10 -9 -8 -8 -8 -8 -6 -6 -6 -6 -5 -5 -5 -5 -5 -------- Run | Yrd Mat Mat Mat Sto Rec Scr Fac Low Low Dat Pro Fac Was Fac Ext Hostile Shots Fired 523 | . 19 75 116 13 . . . 69 25 . 21 139 . 30 16 Missed 159 | . 3 29 38 2 . . . 23 6 . 6 37 . 11 4 Damage Taken 6703 | . 150 497 1205 173 . . . 593 280 . 303 2431 . 718 353 Core 1457 | . 51 168 175 . . . . 46 15 . . 713 . 258 31 Absorbed by Shields 6 | . . . . . . . . . . . . . . . 6 Redirected to Shielding 37 | . . 10 27 . . . . . . . . . . . . Core Remaining (%) 79 | 100 79 58 . . . 68 . . . . 92 . . . . Volleys Fired 189 | . 30 35 58 6 . . 1 9 8 . 15 4 . 16 7 Largest 3 | . 2 2 2 2 . . 3 3 2 . 3 3 . 3 3 Hottest 231 | . 80 83 86 136 . . 173 193 143 . 150 222 . 231 231 Shots Fired 400 | . 59 70 116 12 . . 3 25 16 . 45 8 . 31 15 Gun 322 | . 40 43 116 6 . . 2 16 8 . 45 . . 31 15 Cannon 78 | . 19 27 . 6 . . 1 9 8 . . 8 . . . Launcher . | . . . . . . . . . . . . . . . . Special . | . . . . . . . . . . . . . . . . Kinetic 141 | . 30 35 58 1 . . . . . . 15 2 . . . Thermal 230 | . 29 35 58 11 . . 2 18 16 . 15 3 . 28 15 Explosive . | . . . . . . . . . . . . . . . . Electromagnetic 29 | . . . . . . . 1 7 . . 15 3 . 3 . Robot Hit Streak 23 | . 4 7 23 10 . . 1 2 2 . 18 6 . 17 8 Robot Miss Streak 7 | . 7 3 4 . . . 1 3 4 . 3 1 . 2 1 Penetration Max . | . . . . . . . . . . . . . . . . Secondary Targets 9 | . . 2 4 . . . . . . . 2 . . . 1 Max Gunslinging Chain 1 | . . 1 1 . . . . . . . 1 . . . 1 Shots Hit Robots 257 | . 26 38 83 9 . . 1 15 5 . 37 7 . 26 10 Core Hits 128 | . 7 21 37 2 . . 1 11 3 . 24 2 . 15 5 Critical Kills 2 | . . 1 1 . . . . . . . . . . . . Critical Parts Destroyed 2 | . . 1 1 . . . . . . . . . . . . Critical Strikes 12 | . . 2 6 1 . . . 1 . . 1 . . . 1 Burn 8 | . . . 4 1 . . . 1 . . 1 . . . 1 Destroy 4 | . . 2 2 . . . . . . . . . . . . Melee Attacks 34 | . . . . . . . . . . . . . . 4 30 Impact . | . . . . . . . . . . . . . . . . Slashing 34 | . . . . . . . . . . . . . . 4 30 Piercing . | . . . . . . . . . . . . . . . . Sneak Attacks . | . . . . . . . . . . . . . . . . Combat Hostiles . | . . . . . . . . . . . . . . . . Follow-up Attacks . | . . . . . . . . . . . . . . . . Damage Inflicted 4698 | . 289 591 1222 185 . . 24 288 105 . 836 214 . 699 245 Guns 3521 | . 170 293 1222 85 . . 24 158 42 . 699 . . 583 245 Cannons 924 | . 119 298 . 100 . . . 130 63 . . 214 . . . Explosions 137 | . . . . . . . . . . . 137 . . . . Melee 116 | . . . . . . . . . . . . . . 116 . Ramming . | . . . . . . . . . . . . . . . . Kinetic 1149 | . 114 220 537 . . . . . . . 203 75 . . . Thermal 2926 | . 175 371 685 185 . . . 229 105 . 332 75 . 524 245 Explosive . | . . . . . . . . . . . . . . . . Electromagnetic 507 | . . . . . . . 24 59 . . 301 64 . 59 . Impact . | . . . . . . . . . . . . . . . . Slashing 116 | . . . . . . . . . . . . . . 116 . Piercing . | . . . . . . . . . . . . . . . . Highest Corruption 12 | . . . 1 1 1 . . . . . . 3 12 12 12 Average Corruption 7 | . . . 1 1 1 . . . . . . 2 9 12 12 Corruption Purged . | . . . . . . . . . . . . . . . . Corruption Blocked 5 | . . . . . . . . . . . . . . 5 . Effects 52 | . . . 2 3 . . . . . . . . 2 25 20 Message Errors 14 | . . . 2 . . . . . . . . . . 7 5 Matter Fused 13 | . . . . . . . . . . . . . 1 9 3 Heat Flow Errors 9 | . . . . . . . . . . . . . 1 5 3 Energy Discharges 7 | . . . . . . . . . . . . . . 2 5 Data Loss (minor) 3 | . . . . 2 . . . . . . . . . . 1 Data Loss (major) 2 | . . . . . . . . . . . . . . 1 1 Misfires 3 | . . . . 1 . . . . . . . . . . 2 Weapon Failures 1 | . . . . . . . . . . . . . . 1 . Overload Shots . | . . . . . . . . . . . . . . . . Overflow Damage 10 | . . . . . . . . 10 . . . . . . . Projectiles 10 | . . . . . . . . 10 . . . . . . . Explosions . | . . . . . . . . . . . . . . . . Melee . | . . . . . . . . . . . . . . . . Knockbacks . | . . . . . . . . . . . . . . . . Impact . | . . . . . . . . . . . . . . . . Kinetic . | . . . . . . . . . . . . . . . . Secondary . | . . . . . . . . . . . . . . . . Self-Inflicted Damage . | . . . . . . . . . . . . . . . . Shots . | . . . . . . . . . . . . . . . . Rammed . | . . . . . . . . . . . . . . . . Targets Rammed . | . . . . . . . . . . . . . . . . Kicked . | . . . . . . . . . . . . . . . . Crushed . | . . . . . . . . . . . . . . . . Highest Temperature 331 | . 144 331 16 27 . . . . . . 55 92 128 218 79 Average Temperature 66 | . 50 119 4 16 . . . . . . 24 39 68 52 43 Received Heat Transfer 1260 | . 30 144 576 90 . . . 12 . . 102 144 . 81 81 Siege Activations . | . . . . . . . . . . . . . . . . Robots Corrupted . | . . . . . . . . . . . . . . . . Combat Hostiles . | . . . . . . . . . . . . . . . . Parts Fried 2 | . . . . . . . . . . . 2 . . . . Impact Corruptions . | . . . . . . . . . . . . . . . . Robots Melted 1 | . . . . 1 . . . . . . . . . . . Combat Hostiles 1 | . . . . 1 . . . . . . . . . . . Parts Melted 14 | . 2 1 4 2 . . . 1 . . . . . 3 1 Heat Transferred 5888 | . 384 814 1850 407 . . . 481 185 . 407 74 . 803 483 Parts Sabotaged . | . . . . . . . . . . . . . . . . Parts Stolen . | . . . . . . . . . . . . . . . . Parts Stripped . | . . . . . . . . . . . . . . . . Power Chain Reactions 2 | . . . . . . . . . . . 2 . . . . Alert | -11 -10 -9 -8 -8 -8 -8 -6 -6 -6 -6 -5 -5 -5 -5 -5 ------- Run | Yrd Mat Mat Mat Sto Rec Scr Fac Low Low Dat Pro Fac Was Fac Ext Peak Influence 292 | . 144 210 292 140 50 . 23 . . . . 45 30 103 202 Initial 88 | . . 12 88 74 50 . . . . . . . 15 21 43 Average 71 | . 59 68 179 105 50 . 11 . . . . 23 26 42 94 Maximum Alert Level 1 | . . 1 1 . . . . . . . . . . . 1 Low Security (%) 95 | . 100 97 67 100 100 . 100 . . . . 100 100 100 98 Level 1 4 | . . 2 32 . . . . . . . . . . . 1 Level 2 . | . . . . . . . . . . . . . . . . Level 3 . | . . . . . . . . . . . . . . . . Level 4 . | . . . . . . . . . . . . . . . . Level 5 . | . . . . . . . . . . . . . . . . High Security . | . . . . . . . . . . . . . . . . Max Security . | . . . . . . . . . . . . . . . . Squads Dispatched 9 | . 3 1 1 . . . . . . . . 2 . 2 . Investigation 2 | . 1 . . . . . . . . . . 1 . . . Extermination 1 | . . . . . . . . . . . . . . 1 . Reinforcement 5 | . 2 1 1 . . . . . . . . 1 . . . Assault . | . . . . . . . . . . . . . . . . Garrison 1 | . . . . . . . . . . . . . . 1 . Intercept . | . . . . . . . . . . . . . . . . Searches Triggered . | . . . . . . . . . . . . . . . . Construction Impeded . | . . . . . . . . . . . . . . . . Haulers Reinforced . | . . . . . . . . . . . . . . . . Active Scanning Responses . | . . . . . . . . . . . . . . . . Cargo Convoy Interrupts . | . . . . . . . . . . . . . . . . Stealth | -11 -10 -9 -8 -8 -8 -8 -6 -6 -6 -6 -5 -5 -5 -5 -5 --------- Run | Yrd Mat Mat Mat Sto Rec Scr Fac Low Low Dat Pro Fac Was Fac Ext Distress Signals 2 | . . 1 . . . . . . . . . . . 1 . Communications Jammed . | . . . . . . . . . . . . . . . . Distress Signals . | . . . . . . . . . . . . . . . . Times Spotted 92 | . 9 16 15 2 . . 1 7 3 . 8 9 3 8 11 Peak Tracking Total 9 | . 3 3 3 2 . . 1 3 3 . 5 9 3 2 6 Tactical Retreats 6 | . 1 3 . . . . . 1 . . . 1 . . . Traps | -11 -10 -9 -8 -8 -8 -8 -6 -6 -6 -6 -5 -5 -5 -5 -5 ------- Run | Yrd Mat Mat Mat Sto Rec Scr Fac Low Low Dat Pro Fac Was Fac Ext Traps Triggered 8 | . 1 . . . . . . . . . . 1 . 4 2 Indirectly . | . . . . . . . . . . . . . . . . Trap Hack Attempts . | . . . . . . . . . . . . . . . . Triggered . | . . . . . . . . . . . . . . . . Disarmed . | . . . . . . . . . . . . . . . . Reprogrammed . | . . . . . . . . . . . . . . . . Reused . | . . . . . . . . . . . . . . . . Traps Extracted . | . . . . . . . . . . . . . . . . Installed . | . . . . . . . . . . . . . . . . Triggered 2 | . . . . . . . . 1 . . 1 . . . . Machines | -11 -10 -9 -8 -8 -8 -8 -6 -6 -6 -6 -5 -5 -5 -5 -5 ---------- Run | Yrd Mat Mat Mat Sto Rec Scr Fac Low Low Dat Pro Fac Was Fac Ext Machines Disabled 3 | . . . . 1 . . . . . . . . . . 2 Max in Single Turn 1 | . . . . 1 . . . . . . . . . . . Machines Repaired . | . . . . . . . . . . . . . . . . Machines Dismantled . | . . . . . . . . . . . . . . . . Machines Sabotaged . | . . . . . . . . . . . . . . . . Overloaded Fab Kills . | . . . . . . . . . . . . . . . . Hacking | -11 -10 -9 -8 -8 -8 -8 -6 -6 -6 -6 -5 -5 -5 -5 -5 --------- Run | Yrd Mat Mat Mat Sto Rec Scr Fac Low Low Dat Pro Fac Was Fac Ext Machines Accessed 20 | . . 2 1 . . 3 1 1 1 4 . 4 . 2 1 Terminals 11 | . . 2 1 . . . 1 . . . . 4 . 2 1 Fabricators . | . . . . . . . . . . . . . . . . Repair Stations . | . . . . . . . . . . . . . . . . Recycling Units . | . . . . . . . . . . . . . . . . Scanalyzers . | . . . . . . . . . . . . . . . . Garrison Access . | . . . . . . . . . . . . . . . . Total Hacks 60 | . . 5 4 . . 12 1 1 1 26 . 7 . 2 1 Successful 52 | . . 4 1 . . 12 . 1 1 26 . 5 . 2 . Failed 8 | . . 1 3 . . . 1 . . . . 2 . . 1 Catastrophic 5 | . . . 2 . . . 1 . . . . 2 . . . Database Lockouts . | . . . . . . . . . . . . . . . . Manual 17 | . . 3 4 1 . . 1 . . . . 6 . 1 1 Terminals 20 | . . 5 4 . . . 1 . . . . 7 . 2 1 Fabricators . | . . . . . . . . . . . . . . . . Repair Stations . | . . . . . . . . . . . . . . . . Recycling Units . | . . . . . . . . . . . . . . . . Scanalyzers . | . . . . . . . . . . . . . . . . Garrison Access . | . . . . . . . . . . . . . . . . Terminal Hacks 44 | . . 2 . . . 12 . 1 1 26 . 1 . 1 . Record 14 | . . . . . . 3 . . . 11 . . . . . Part Schematic 8 | . . . . . . . . . . 8 . . . . . Robot Schematic 4 | . . . . . . . . . . 4 . . . . . Robot Analysis 8 | . . . . . . 8 . . . . . . . . . Prototype ID Bank 4 | . . 1 . . . . . . . 3 . . . . . Open Door 3 | . . . . . . . . 1 1 . . . . 1 . Alert Level 1 | . . 1 . . . . . . . . . . . . . Zone Layout 1 | . . . . . . . . . . . . 1 . . . Derelict Proto ID Bank 1 | . . . . . . 1 . . . . . . . . . Fabricator Hacks . | . . . . . . . . . . . . . . . . Repair Station Hacks . | . . . . . . . . . . . . . . . . Recycling Unit Hacks . | . . . . . . . . . . . . . . . . Scanalyzer . | . . . . . . . . . . . . . . . . Garrison Access Hacks . | . . . . . . . . . . . . . . . . Unauthorized Hacks 8 | . . 2 1 . . . . . . . . 4 . 1 . Terminals 8 | . . 2 1 . . . . . . . . 4 . 1 . Botnet 8 | . . 2 1 . . . . . . . . 4 . 1 . Fabricators . | . . . . . . . . . . . . . . . . Repair Stations . | . . . . . . . . . . . . . . . . Recycling Units . | . . . . . . . . . . . . . . . . Scanalyzers . | . . . . . . . . . . . . . . . . Garrison Access . | . . . . . . . . . . . . . . . . Data Cores Recovered . | . . . . . . . . . . . . . . . . Used . | . . . . . . . . . . . . . . . . Hacking Detections 9 | . . 1 1 . . . 1 . . . . 4 . 1 1 Full Trace Events 1 | . . . . . . . . . . . . 1 . . . Feedback Events . | . . . . . . . . . . . . . . . . Feedback Blocked . | . . . . . . . . . . . . . . . . Robot Schematics Acquired 4 | . . . . . . . . . . 4 . . . . . Robots Built . | . . . . . . . . . . . . . . . . Authchips . | . . . . . . . . . . . . . . . . Time . | . . . . . . . . . . . . . . . . Total Robot Build Rating . | . . . . . . . . . . . . . . . . Part Schematics Acquired 8 | . . . . . . . . . . 8 . . . . . Parts Built . | . . . . . . . . . . . . . . . . Authchips . | . . . . . . . . . . . . . . . . Time . | . . . . . . . . . . . . . . . . Total Part Build Rating . | . . . . . . . . . . . . . . . . Parts Repaired . | . . . . . . . . . . . . . . . . Time . | . . . . . . . . . . . . . . . . Parts Recycled . | . . . . . . . . . . . . . . . . Recycled Matter . | . . . . . . . . . . . . . . . . Retrieved Matter . | . . . . . . . . . . . . . . . . Retrieved Components . | . . . . . . . . . . . . . . . . Parts Scanalyzed . | . . . . . . . . . . . . . . . . Part Schematics Acquired . | . . . . . . . . . . . . . . . . Parts Damaged . | . . . . . . . . . . . . . . . . Bothacking | -11 -10 -9 -8 -8 -8 -8 -6 -6 -6 -6 -5 -5 -5 -5 -5 ------------ Run | Yrd Mat Mat Mat Sto Rec Scr Fac Low Low Dat Pro Fac Was Fac Ext Used RIF Installer . | . . . . . . . . . . . . . . . . Robots Hacked . | . . . . . . . . . . . . . . . . Non-combat . | . . . . . . . . . . . . . . . . Combat . | . . . . . . . . . . . . . . . . Robot Hacks Applied . | . . . . . . . . . . . . . . . . Relay Couplers Released . | . . . . . . . . . . . . . . . . Fabnet Peak Effective % . | . . . . . . . . . . . . . . . . Robots Rewired . | . . . . . . . . . . . . . . . . Allies Hacked . | . . . . . . . . . . . . . . . . Hacks Repelled . | . . . . . . . . . . . . . . . . Allies | -11 -10 -9 -8 -8 -8 -8 -6 -6 -6 -6 -5 -5 -5 -5 -5 -------- Run | Yrd Mat Mat Mat Sto Rec Scr Fac Low Low Dat Pro Fac Was Fac Ext Total Allies 6 | . . . . . . . . . . . . . . . 6 Largest Group 4 | . . . . . . . . . . . . . . . 4 Highest-Rated Group 103 | . . . . . . . . . . . . . . . 103 Highest-Rated Ally 39 | . . . . . . . . . . . . . . . 39 Total Orders . | . . . . . . . . . . . . . . . . Ally Attacks 47 | . . . . . . . . . . . . . . . 47 Total Damage 794 | . . . . . . . . . . . . . . . 794 Kills 6 | . . . . . . . . . . . . . . . 6 Allies Corrupted . | . . . . . . . . . . . . . . . . Allies Melted . | . . . . . . . . . . . . . . . . Intel | -11 -10 -9 -8 -8 -8 -8 -6 -6 -6 -6 -5 -5 -5 -5 -5 ------- Run | Yrd Mat Mat Mat Sto Rec Scr Fac Low Low Dat Pro Fac Was Fac Ext Robot Analysis Total 8 | . . . . . . 8 . . . . . . . . . Derelict Logs Recovered 4 | . . . . . . . . 3 . . 1 . . . . Drone Launches . | . . . . . . . . . . . . . . . . Drone Recoveries . | . . . . . . . . . . . . . . . . Exploration | -11 -10 -9 -8 -8 -8 -8 -6 -6 -6 -6 -5 -5 -5 -5 -5 ------------- Run | Yrd Mat Mat Mat Sto Rec Scr Fac Low Low Dat Pro Fac Was Fac Ext Turns Passed 8262 | . 438 637 491 318 177 2521 322 632 335 126 671 473 45 622 454 Spaces Moved 5074 | 1 295 349 180 176 115 1598 192 378 184 78 388 280 89 507 264 Core 237 | . . . . . . . . . . . . 22 89 126 . Treads 3713 | . . 59 180 176 115 1598 192 378 184 78 388 258 . . 107 Legs 283 | 1 48 . . . . . . . . . . . . 234 . Wheels 537 | . 247 290 . . . . . . . . . . . . . Hover 304 | . . . . . . . . . . . . . . 147 157 Flight . | . . . . . . . . . . . . . . . . Fastest Speed 50 | 120 115 115 155 155 155 155 158 158 158 163 163 50 50 50 56 Average Speed 143 | 120 115 137 159 155 155 156 158 158 160 163 163 153 50 101 99 Slowest Speed 320 | 120 120 320 160 155 155 158 238 158 243 163 163 242 50 190 220 Overloaded Moves . | . . . . . . . . . . . . . . . . Propulsion Burnouts . | . . . . . . . . . . . . . . . . Robots Hopped . | . . . . . . . . . . . . . . . . Cave-ins Triggered . | . . . . . . . . . . . . . . . . Exploration Rate (%) 40 | 1 61 48 21 35 32 91 6 58 30 68 59 9 84 13 37 Regions Visited 15 Branch Regions 8 Pre-discovered Areas 1 | . . . . . . . . . . 1 . . . . . Known Exits Taken 6 | . . . . . . . 1 1 1 1 1 . . 1 . Unknown Exits Taken 7 | 1 1 1 1 1 1 1 . . . . . . . . . Scrap Searched 9 | . . . . . . 3 . 3 1 . 2 . . . . Spaces Dug . | . . . . . . . . . . . . . . . . Terrain Destroyed 17 | . . . . 1 . . . . . . 15 . . 1 . Melee . | . . . . . . . . . . . . . . . . Projectile 3 | . . . . 1 . . . . . . 1 . . 1 . AOE 14 | . . . . . . . . . . . 14 . . . . Terrain Rammed . | . . . . . . . . . . . . . . . . Walls Destroyed . | . . . . . . . . . . . . . . . . Machines Disabled . | . . . . . . . . . . . . . . . . Actions | -11 -10 -9 -8 -8 -8 -8 -6 -6 -6 -6 -5 -5 -5 -5 -5 --------- Run | Yrd Mat Mat Mat Sto Rec Scr Fac Low Low Dat Pro Fac Was Fac Ext Total 5677 | . 339 442 276 218 114 1615 208 393 205 77 405 320 88 576 401 Wait 141 | . . 36 9 . . . . 1 6 . 1 12 . 20 56 Move 5060 | . 294 348 179 175 114 1597 191 377 183 77 387 280 88 506 264 Hop . | . . . . . . . . . . . . . . . . Pick Up 48 | . 6 5 11 10 . 4 3 1 . . 1 4 . 3 . Fast Attach 48 | . 3 7 3 3 . 2 4 1 1 . 1 2 . 14 7 Attach 33 | . 2 . 7 4 . 1 2 1 3 . . 8 . 4 1 Detach 18 | . 4 . 1 2 . 2 1 1 . . . 3 . 2 2 Swap 27 | . . 3 3 3 . 2 2 1 4 . . 1 . 2 6 Drop 58 | . . 8 5 15 . 7 4 1 . . . 6 . 5 7 Fire 189 | . 30 35 58 6 . . 1 9 8 . 15 4 . 16 7 Melee 34 | . . . . . . . . . . . . . . 4 30 Ram . | . . . . . . . . . . . . . . . . Kick . | . . . . . . . . . . . . . . . . Crush . | . . . . . . . . . . . . . . . . Escape Stasis 21 | . . . . . . . . . . . . . . . 21 Rewire . | . . . . . . . . . . . . . . . . Trap . | . . . . . . . . . . . . . . . . Miscellaneous . | . . . . . . . . . . . . . . . . Route ------- -11/Scrapyard -10/Materials (discovered 2 exits: *Mat / [*Min]) -9/Materials (discovered 2 exits: *Mat / [*Min]) -8/Materials -8/Storage -8/Recycling (discovered 2 exits: *Fac / *Scr) -8/Scraptown (discovered 2 exits: *Fac x2) -6/Factory -6/Lower Caves -6/Lower Caves -6/Data Miner -5/Proximity Caves -5/Factory (discovered 3 exits: Fac / Upp / Ext) -5/Waste -5/Factory -5/Extension History --------- Turn | Location | Event 1 | -11/Scrapyard | Discovered new exit (range 0) 1 | -11/Scrapyard | Entered Materials 178 | -10/Materials | Discovered new exit (range 6) 302 | -10/Materials | Build established: Mutant 397 | -10/Materials | Discovered new exit (range 15) 439 | -10/Materials | Entered another Materials area 439 | -9/Materials | Evolved 2 slots: Utility x2 494 | -9/Materials | Discovered new exit (range 5) 1048 | -9/Materials | Discovered new exit (range 6) 1076 | -9/Materials | Entered another Materials area 1076 | -8/Materials | Evolved 2 slots: Propulsion x1, Utility x1 1193 | -8/Materials | Build established: Scavenger-Mutant 1359 | -8/Materials | Lost 7 parts (1p4n1u1w) 1536 | -8/Materials | Discovered new exit (range 11) 1545 | -8/Materials | Met 7R-MNS 1567 | -8/Materials | Entered Storage 1815 | -8/Storage | Used back door to open Recycling access 1815 | -8/Storage | Discovered new exit (range 5) 1817 | -8/Storage | Build established: Mutant 1885 | -8/Storage | Entered Recycling 1980 | -8/Recycling | Discovered new exit (range 12) 2025 | -8/Recycling | Scanned before Scraplab entrance 2044 | -8/Recycling | Discovered new exit (range 11) 2048 | -8/Recycling | Entered Scraplab 2062 | -8/Recycling | Entered Scraptown 2062 | -8/Scraptown | System corruption cleaned by C-Scrubber 2279 | -8/Scraptown | Heard Great Nut preacher, LISTEN AND RECITE! 2526 | -8/Scraptown | Discovered new exit (range 7) 2684 | -8/Scraptown | Visited Symbiants 2736 | -8/Scraptown | Visited Artisan Demo Area 2774 | -8/Scraptown | Visited Junk Repository 3097 | -8/Scraptown | Visited Junk Repository 3122 | -8/Scraptown | Visited UFD Registry 3138 | -8/Scraptown | Registered with UFD as "Monorunner" 3195 | -8/Scraptown | Visited Cartography Club 3468 | -8/Scraptown | Visited Observation Area 3539 | -8/Scraptown | Visited Scrapoid Research Area 3571 | -8/Scraptown | Visited Chapter 10 3615 | -8/Scraptown | Visited Analyses Database 3654 | -8/Scraptown | Visited Derelict Rescue Squad 3668 | -8/Scraptown | Found DRS Beacon 3697 | -8/Scraptown | Visited Science Guys 3931 | -8/Scraptown | Visited Abandonware Association 3958 | -8/Scraptown | Learned abandonware demo "POISON.EXE" 3994 | -8/Scraptown | Visited A0-MCA Data Center 4004 | -8/Scraptown | Given a B- rating by A0-MCA 4007 | -8/Scraptown | Found A0-MCA's Component Scanner 4036 | -8/Scraptown | Visited Infowarlord's Domain 4065 | -8/Scraptown | Found Exp. Signal Interpreter 4575 | -8/Scraptown | Discovered new exit (range 5) 4583 | -8/Scraptown | Entered Factory 4583 | -6/Factory | Evolved 4 slots: Utility x3, Weapon x1 4899 | -6/Factory | Discovered new exit (range 3) 4903 | -6/Factory | Identified exit to Lower Caves 4905 | -6/Factory | Entered Lower Caves 4967 | -6/Lower Caves | Learned Factory interactive machine intel 4992 | -6/Lower Caves | Attracted the attention of an 0b10 checkpoint 5298 | -6/Lower Caves | Build established: Skirmisher 5403 | -6/Lower Caves | Learned location of 1 exit from Factory 5434 | -6/Lower Caves | Spotted B-75 Beast 5442 | -6/Lower Caves | Learned location of 2 exits from Factory 5496 | -6/Lower Caves | Discovered new exit (range 15) 5535 | -6/Lower Caves | Identified exit to Lower Caves 5537 | -6/Lower Caves | Entered another Lower Caves area 5739 | -6/Lower Caves | Build established: Gunner 5864 | -6/Lower Caves | Discovered new exit (range 5) 5870 | -6/Lower Caves | Identified exit to Data Miner 5872 | -6/Lower Caves | Entered Data Miner 5872 | -6/Data Miner | Discovered new exit (range 6) 5903 | -6/Data Miner | Met Data Miner 5938 | -6/Data Miner | Learned location of Section 7 (-2) 5938 | -6/Data Miner | Acquired the access code to Warlord's prototype stash 5961 | -6/Data Miner | Received God Mode back door access code from Data Miner 5996 | -6/Data Miner | Identified exit to Proximity Caves 5998 | -6/Data Miner | Entered Proximity Caves 6026 | -5/Proximity Caves | Attracted the attention of an 0b10 checkpoint 6126 | -5/Proximity Caves | Build established: Scavenger-Gunner 6371 | -5/Proximity Caves | Identified exit to Factory 6610 | -5/Proximity Caves | Build established: Gunner 6669 | -5/Proximity Caves | Entered Factory 6669 | -5/Factory | Evolved 2 slots: Propulsion x1, Utility x1 6670 | -5/Factory | Identified exit to Factory 6670 | -5/Factory | Identified exit to Upper Caves 6670 | -5/Factory | Identified exit to Extension 6671 | -5/Factory | Loaded intel: 54 interactive machine locations 7003 | -5/Factory | Build established: Tank 7134 | -5/Factory | Core integrity fell below 50% 7142 | -5/Factory | Sucked down chute 7142 | -5/Factory | Entered Waste 7147 | -5/Waste | Spotted C-40 Crusher 7156 | -5/Waste | Spotted C-40 Crusher 7156 | -5/Waste | Spotted C-40 Crusher 7156 | -5/Waste | Spotted C-40 Crusher 7157 | -5/Waste | EMP discharged 7157 | -5/Waste | System corruption reached 10% 7159 | -5/Waste | Lost 18 parts (3p6n5u4w) 7163 | -5/Waste | Spotted C-40 Crusher 7173 | -5/Waste | Spotted C-40 Crusher 7179 | -5/Waste | Discovered new exit (range 14) 7186 | -5/Waste | Identified exit to Factory 7187 | -5/Waste | Entered Factory 7394 | -5/Factory | Build established: Mutant 7462 | -5/Factory | Core integrity fell below 20% 7718 | -5/Factory | Garrison activated, responded to threat 7792 | -5/Factory | Lost 3 parts (2u1w) 7797 | -5/Factory | Build established: Scavenger-Gunner 7804 | -5/Factory | Discovered exit to Extension (range 10) 7809 | -5/Factory | Entered Extension 7825 | -5/Extension | Rescued a captive Derelict 7834 | -5/Extension | Rescued a captive Derelict 7834 | -5/Extension | Rescued a captive Derelict 7896 | -5/Extension | Rescued a captive Derelict 7933 | -5/Extension | Rescued a captive Derelict 7934 | -5/Extension | Rescued a captive Derelict 8234 | -5/Extension | Rescued a captive Derelict 8246 | -5/Extension | Spotted B-75 Beast 8255 | -5/Extension | Spotted B-75 Beast 8263 | -5/Extension | Destroyed by B-75 Beast with Heavy Plasma Cannon Last Messages --------------- Door Terminal flashes as you approach. RB-1JE(h): "Free at last!" HV Slug penetrates Wall. Acquired 4 matter. Component scanned: Seismic Detector [T-07 Excavator]. RB-1JE(h) destroyed. Machine disabled. Acquired 2 matter. HV Slug penetrates B-75 Beast. B-75 Beast suffers critical hit (Destroy). HV Slug penetrates B-75 Beast. B-75 Beast suffers critical hit (Destroy). I&5KNNQT6GSRUDZ|HA,0ZWF,X>UT033 S9-5FW(h) destroyed. U-05 Engineer builds a Wall. Hpw. Shock Rifle destroyed. Penetrated by Slug. Lgt. Angular Momentum Engine destroyed. Critical hit (Burn: +37). Penetrated by Slug. Map ----- +----------------------------------------------------+ | ! ""T" %!#??##""##???????????????????????????? | | """!% #??# %/#???????????????????????????? | | ##### ####??????????????????????????? | | = T #??????????????????????????? | | ############ % #??????????????????????????? | | ????######## #??????????????????????????? | | ????# ^ + [ #??????????????????????????? | | ????# # =!=#??????????????????????????? | | ????#^ """ # %= %#??????????????????????????? | | ????# T + !%*%#??????????????????????????? | | ????# "" ##########%#??????????????????????????? | | ????#!= % #????????#!#??????????????????????????? | | ????## #####????????# #??????????????????????????? | | ?????###????????????# #??????????????????????????? | | ????????????????????# #??????????????????????????? | | ????????????????????# #??????????????????????????? | | ????????????????????# #??????????????????????????? | | ????????????????##### #??????????????????????????? | | ????????????????# #??????????????????????????? | | ????????????????###T; #??????????????????????????? | | ??????????????????### #??????????????????????????? | | ????????????????????#=##?????????????????????????? | | ????????????????????#%;####??#???????????????????? | | ??????????????????###u#;#Y## ###w##??????????????? | | ??????????????????#=%* Y "" ""#?????????????? | | ??????????????????#!!] @% " " #?????????????? | | ?????????????????## #?????????????? | | ?????????????????## #?????????????? | | ??????????????????# #?????????????? | | ????????????????? ???????????? | | ??????????????? ??????????? | | ????????????? BB ??????????? | | ???????????? BB ??????????? | | ???????????? k % BB u ???????????? | | ???????????######## BB ###???????????? | | ??????????????????# #?????????????? | | ??????????????????# #?????????????? | | ??????????????????# ??????????????? | | ??????????????????# ????????????????? | | ???????????????????#####T#"""#???????????????????? | | ?????????????????????????????????????????????????? | | ?????????????????????????????????????????????????? | | | | | | | | | | | | | | | | | +----------------------------------------------------+ Best States ------------- Heat Dissipation 78 Coolant Potential 65 Energy Generation 18 Energy Capacity 300 Matter Stores 300 Matter Capacity 300 Sight Range 16 Robot Scan Range 16 Terrain Scan Density 10 Base Temperature (-) 150 Corruption Block 15 Armor Coverage 225 Resistance: EX 25 Core Shielding 20 Weapon Cycling 20 Evasion (%) 55 Targeting Accuracy 8 Target Analysis 6 Core Analysis 6 Recoil Reduction 4 Particle Charging 15 Item Schematics ----------------- Combat Drone Bay | -6/Data Miner | Free Lgt. Regenerative Plating | -6/Data Miner | Free Enh. Flexi-carbon Leg | -6/Data Miner | Free Imp. Matter Compressor | -6/Data Miner | Free Hvy. Gatling Laser | -6/Data Miner | Free Imp. Antigrav System | -6/Data Miner | Free Adv. Thermal Generator | -6/Data Miner | Free HERF Cannon | -6/Data Miner | Free Robot Schematics ------------------ S-27 Virus | -6/Data Miner | Free B-48 Gladiator | -6/Data Miner | Free A-15 Conveyor | -6/Data Miner | Free R-10 Processor | -6/Data Miner | Free Fabricated ------------ Nothing Alien Tech Used ----------------- None Achievements -------------- None Challenges ------------ None Game ------ Seed BurstGyrokineticCorpse Manual? 0 Play Time 01:14:55 Cumulative 172.9 hours Start 2024.08.07 @ 09:27:51 End 2024.08.07 @ 11:07:43 Sessions 1 Manual Loads 0 Difficulty Rogue Special Mode None Game No. 285 Rogue 283 Adventurer 2 Explorer 0 Win Type - Total 5 Types 4/0/0/1/0/0/0/0/0 Lore% 63 Gallery% 62 Achievement% 52 Wizard Run 0 Options --------- Layout 0 ASCII 0 Keyboard 1 Movement Numpad Keybinds 1 Fullscreen 2 Font 18/SmallcapsGlow Map View 76x50 Zoom Use 0% Tactical HUD 1 Map Filters NONE Filters NONE Steam 1 RUN: dc5d91be-d07a-481d-b6de-dc767a120ab4